{"text_format":"1","workbook":"xlsx","n_sheets":1,"sheets":["Cerere de Finantare"],"not_rendered":{"charts":0,"images":2,"macros":1,"external_links":0,"defined_names":0,"comments":0,"pivot_tables":0},"unopened":[],"bounds":{"document_bytes":16777216,"sheet_cells":100000,"rows_first":2000,"rows_last":500,"rows_between":2000,"halvings":0,"cell_chars":16384,"cell_head_chars":4096},"cells_cut":0,"cells_raw":0,"read":"whole","date_system":"1900"}

{"sheet":"Cerere de Finantare","index":0,"n_rows":411,"n_cols":56,"rows_kept":411,"cut":false,"hidden":false,"merged":[[401,43,401,60],[402,43,402,60],[403,43,403,60],[404,43,404,60],[405,43,405,60],[406,43,406,60],[407,43,407,60],[408,43,408,60],[409,43,409,60],[299,43,299,60],[300,43,300,60],[301,43,301,60],[302,43,302,60],[303,43,303,60],[323,43,323,60],[324,43,324,60],[325,43,325,60],[326,43,326,60],[310,0,312,60],[313,0,313,60],[314,0,314,40],[314,44,314,52],[314,53,314,60],[316,0,316,13],[316,14,316,60],[317,0,317,13],[317,14,317,60],[318,0,318,17],[318,18,318,32],[318,33,318,52],[318,53,318,60],[319,0,319,24],[319,25,319,37],[268,43,268,60],[269,43,269,60],[270,43,270,60],[250,7,250,41],[251,7,251,41],[252,0,254,60],[259,0,259,13],[259,14,259,60],[260,0,260,17],[260,18,260,32],[260,33,260,52],[260,53,260,60],[84,40,84,48],[84,51,84,59],[86,1,90,59],[91,1,91,22],[91,41,91,48],[91,51,91,58],[153,1,153,23],[150,1,150,13],[150,20,150,32],[149,1,149,9],[149,12,149,27],[149,30,149,33],[149,36,149,45],[149,48,149,51],[149,54,149,58],[148,1,148,9],[148,12,148,27],[148,30,148,33],[148,36,148,44],[148,48,148,51],[148,54,148,58],[146,1,146,19],[146,22,146,39],[146,42,146,58],[208,0,208,1],[208,3,208,60],[209,0,209,60],[229,0,229,30],[229,41,229,52],[230,1,230,31],[233,0,233,60],[223,0,223,1],[223,5,223,60],[228,0,228,60],[213,3,213,60],[214,3,214,60],[215,3,215,60],[216,0,216,1],[224,5,224,60],[226,0,226,1],[226,5,226,60],[227,0,227,1],[227,5,227,60],[222,0,222,1],[222,3,222,60],[400,0,401,1],[400,2,401,23],[400,24,400,60],[401,24,401,30],[401,31,401,36],[401,37,401,42],[327,43,327,60],[328,43,328,60],[329,43,329,60],[330,43,330,60],[242,0,242,49],[242,50,242,60],[241,1,241,49],[240,0,240,49],[265,43,265,60],[266,43,266,60],[267,43,267,60],[297,43,297,60],[298,43,298,60],[204,1,204,28],[204,31,204,59],[205,0,205,60],[206,0,206,1],[206,3,206,60],[207,0,207,1],[207,3,207,60],[219,0,219,1],[219,3,219,60],[220,0,220,1],[220,3,220,60],[221,0,221,1],[221,3,221,60],[211,3,211,60],[212,3,212,60],[261,53,261,60],[261,38,261,52],[261,0,261,24],[216,3,216,60],[225,0,225,1],[225,5,225,60],[224,0,224,1],[203,0,203,60],[188,35,188,41],[188,42,188,49],[188,50,188,54],[188,55,188,60],[189,0,189,29],[189,30,189,34],[189,35,189,41],[189,42,189,49],[189,50,189,54],[189,55,189,60],[192,0,192,29],[192,30,192,34],[192,35,192,41],[192,42,192,49],[192,50,192,54],[192,55,192,60],[191,0,191,29],[191,30,191,34],[195,35,195,41],[195,42,195,49],[195,50,195,54],[195,55,195,60],[188,0,188,29],[188,30,188,34],[186,35,186,41],[186,42,186,49],[198,0,198,60],[199,0,199,60],[200,1,200,34],[201,0,201,60],[202,1,202,59],[185,30,185,34],[185,35,185,41],[185,42,185,49],[185,50,185,54],[185,55,185,60],[187,0,187,29],[187,30,187,34],[187,35,187,41],[187,42,187,49],[187,50,187,54],[187,55,187,60],[171,30,171,60],[172,0,172,29],[173,0,174,54],[173,55,173,60],[174,55,174,60],[175,0,175,60],[180,0,180,29],[180,30,180,34],[180,35,180,41],[180,42,180,49],[180,50,180,54],[180,55,180,60],[179,0,179,29],[179,30,179,34],[179,35,179,41],[179,42,179,49],[179,50,179,54],[179,55,179,60],[183,0,183,29],[184,35,184,41],[181,0,181,29],[181,30,181,34],[181,35,181,41],[181,42,181,49],[181,50,181,54],[181,55,181,60],[191,42,191,49],[191,50,191,54],[191,55,191,60],[190,0,190,29],[190,30,190,34],[190,35,190,41],[190,42,190,49],[190,50,190,54],[190,55,190,60],[186,0,186,29],[186,30,186,34],[191,35,191,41],[186,50,186,54],[186,55,186,60],[184,55,184,60],[185,0,185,29],[178,42,178,49],[178,50,178,54],[178,55,178,60],[176,0,176,29],[176,30,176,34],[176,35,176,41],[182,0,182,29],[182,30,182,34],[182,35,182,41],[182,42,182,49],[182,50,182,54],[182,55,182,60],[176,50,176,54],[176,55,176,60],[183,30,183,34],[183,35,183,41],[183,42,183,49],[183,50,183,54],[183,55,183,60],[184,0,184,29],[184,30,184,34],[176,42,176,49],[150,38,150,50],[151,1,151,13],[151,20,151,32],[151,38,151,50],[155,0,168,60],[169,0,169,29],[169,30,170,60],[170,0,170,29],[184,42,184,49],[184,50,184,54],[177,0,177,29],[177,30,177,49],[177,50,177,60],[178,0,178,29],[178,30,178,34],[178,35,178,41],[147,1,147,19],[147,22,147,39],[147,42,147,58],[141,37,142,48],[141,51,142,58],[142,4,142,6],[142,7,142,9],[142,10,142,15],[145,1,145,37],[141,4,141,6],[141,7,141,9],[141,10,141,15],[141,18,142,20],[141,21,142,26],[141,28,142,34],[140,4,140,15],[140,18,140,20],[140,21,140,26],[140,28,140,34],[140,37,140,48],[140,51,140,58],[132,0,132,60],[133,1,133,32],[135,3,135,10],[135,24,135,49],[136,3,136,16],[136,24,136,49],[127,47,127,57],[128,3,130,13],[128,14,130,24],[128,25,130,35],[128,47,130,57],[129,36,129,46],[121,1,121,13],[121,20,121,32],[121,36,121,58],[123,1,123,58],[124,1,124,58],[126,3,127,13],[126,14,127,24],[126,25,127,35],[126,36,127,46],[126,47,126,57],[120,1,120,13],[120,20,120,32],[120,36,120,58],[117,1,117,9],[117,15,117,45],[117,52,117,58],[118,1,118,9],[118,17,118,25],[118,32,118,34],[118,39,118,41],[118,46,118,54],[119,1,119,9],[119,17,119,25],[119,32,119,34],[119,39,119,41],[119,46,119,54],[97,43,97,58],[98,2,98,14],[98,19,98,39],[98,43,98,58],[115,1,115,19],[115,22,115,39],[115,42,115,58],[116,1,116,9],[116,15,116,45],[116,52,116,58],[113,1,113,41],[114,1,114,19],[114,22,114,39],[114,42,114,58],[83,5,83,10],[83,12,83,16],[83,18,83,22],[83,28,83,30],[83,31,83,38],[100,40,100,58],[102,30,102,31],[102,32,102,33],[102,34,102,35],[102,36,102,37],[102,40,102,41],[102,42,102,43],[102,44,102,45],[102,46,102,47],[102,50,102,51],[102,52,102,53],[102,54,102,55],[102,56,102,57],[93,0,93,60],[94,0,94,60],[96,1,97,15],[96,19,96,39],[96,43,96,58],[97,19,97,39],[48,27,48,37],[48,39,48,48],[48,50,48,58],[54,1,58,13],[56,15,56,25],[56,27,56,37],[56,39,56,48],[56,50,56,58],[77,1,81,13],[79,15,79,25],[79,27,79,37],[79,39,79,48],[79,50,79,58],[69,1,73,13],[71,15,71,25],[71,27,71,37],[71,39,71,48],[71,50,71,58],[83,40,83,49],[83,51,83,59],[41,0,41,15],[42,0,42,12],[42,13,42,25],[42,27,42,40],[42,41,42,59],[44,1,44,13],[44,15,44,25],[44,27,44,37],[44,39,44,48],[44,50,44,58],[62,1,66,13],[64,15,64,25],[64,27,64,37],[64,39,64,48],[64,50,64,58],[46,1,50,13],[48,15,48,25],[21,0,21,16],[33,1,33,22],[33,34,33,55],[35,1,38,31],[35,34,35,59],[37,34,37,55],[38,34,38,59],[24,1,24,42],[26,4,26,16],[25,8,25,40],[7,0,7,34],[7,36,8,60],[8,0,8,34],[9,0,9,5],[9,7,9,34],[9,36,9,60],[0,6,0,60],[1,6,1,60],[3,42,3,60],[5,0,6,34],[5,36,5,60],[6,36,6,60],[15,30,15,34],[16,20,16,23],[16,30,16,34],[13,30,13,34],[14,6,14,8],[14,9,14,11],[14,12,14,14],[14,15,14,18],[14,20,14,23],[14,24,14,26],[14,27,14,28],[14,30,14,34],[11,34,12,34],[12,0,12,5],[11,0,11,5],[11,32,12,32],[11,33,12,33],[12,36,12,60],[13,6,13,8],[13,9,13,11],[13,12,13,14],[13,15,13,18],[13,20,13,23],[13,24,13,26],[13,27,13,28],[11,27,12,27],[11,28,12,28],[11,30,12,30],[11,31,12,31],[10,36,11,60],[11,7,12,7],[11,9,12,9],[11,10,12,10],[11,12,12,12],[11,13,12,13],[11,15,12,15],[11,16,12,16],[11,17,12,17],[11,18,12,18],[11,20,12,20],[11,21,12,21],[11,22,12,22],[11,23,12,23],[11,25,12,25],[104,3,104,4],[104,5,104,6],[104,7,104,8],[15,6,15,8],[15,12,15,14],[15,20,15,23],[22,0,22,60],[28,1,28,59],[30,1,30,59],[32,1,32,59],[40,2,40,19],[17,0,17,7],[17,9,17,20],[18,0,18,21],[19,0,19,7],[20,0,20,21],[104,56,104,57],[104,58,104,59],[108,48,108,55],[108,24,108,35],[110,43,110,54],[106,1,106,16],[106,17,106,30],[106,48,106,55],[104,1,104,2],[112,28,112,54],[104,10,104,11],[104,12,104,13],[104,14,104,15],[104,16,104,17],[104,19,104,20],[104,21,104,22],[104,23,104,24],[104,25,104,26],[104,30,104,31],[104,37,104,38],[104,39,104,40],[104,41,104,42],[104,43,104,44],[104,46,104,47],[104,48,104,49],[104,50,104,51],[104,52,104,53],[104,28,104,29],[104,32,104,33],[104,34,104,35],[194,30,194,34],[194,35,194,41],[194,42,194,49],[194,50,194,54],[194,55,194,60],[217,0,217,1],[217,3,217,60],[218,0,218,1],[218,3,218,60],[197,0,197,29],[197,30,197,34],[197,35,197,41],[197,42,197,49],[197,50,197,54],[197,55,197,60],[196,0,196,29],[196,30,196,34],[196,35,196,41],[196,42,196,49],[196,50,196,54],[196,55,196,60],[195,0,195,29],[195,30,195,34],[210,3,210,60],[262,0,262,24],[262,25,262,31],[262,32,262,60],[234,0,234,7],[234,8,234,60],[235,0,235,7],[235,8,235,60],[236,50,236,60],[236,0,236,49],[237,0,238,16],[255,0,255,60],[256,0,256,40],[256,44,256,52],[256,53,256,60],[258,0,258,13],[258,14,258,60],[238,50,238,60],[239,0,239,60],[243,0,243,60],[244,0,244,60],[245,0,245,60],[246,0,246,60],[237,17,237,49],[237,50,237,60],[238,17,238,49],[249,7,249,41],[249,42,251,60],[194,0,194,29],[268,37,268,42],[269,0,269,1],[269,2,269,23],[269,24,269,30],[269,31,269,36],[269,37,269,42],[267,0,267,1],[265,37,265,42],[265,31,265,36],[265,24,265,30],[264,0,265,1],[264,24,264,60],[264,2,265,23],[266,0,266,1],[266,2,266,23],[266,24,266,30],[266,31,266,36],[266,37,266,42],[267,2,267,23],[261,25,261,37],[288,0,288,13],[288,14,288,60],[289,0,289,13],[289,14,289,60],[290,0,290,17],[290,18,290,32],[290,33,290,52],[290,53,290,60],[291,0,291,24],[291,25,291,37],[291,38,291,52],[291,53,291,60],[273,31,273,36],[273,37,273,42],[273,0,273,23],[274,0,274,60],[272,37,272,42],[270,0,270,1],[270,2,270,23],[270,24,270,30],[270,31,270,36],[270,37,270,42],[271,0,271,1],[271,2,271,23],[271,24,271,30],[271,31,271,36],[271,37,271,42],[272,43,272,60],[273,43,273,60],[271,43,271,60],[267,24,267,30],[267,31,267,36],[267,37,267,42],[268,0,268,1],[268,2,268,23],[268,24,268,30],[268,31,268,36],[292,0,292,24],[292,25,292,31],[292,32,292,60],[279,7,279,41],[279,42,281,60],[280,7,280,41],[281,7,281,41],[282,0,284,60],[285,0,285,60],[286,0,286,40],[286,44,286,52],[286,53,286,60],[272,0,272,1],[272,2,272,23],[272,24,272,30],[272,31,272,36],[273,24,273,30],[294,0,295,1],[294,2,295,23],[294,24,294,60],[295,24,295,30],[295,31,295,36],[295,37,295,42],[296,0,296,1],[296,2,296,23],[296,24,296,30],[296,31,296,36],[296,37,296,42],[295,43,295,60],[296,43,296,60],[297,0,297,1],[297,2,297,23],[297,24,297,30],[297,31,297,36],[297,37,297,42],[298,0,298,1],[298,2,298,23],[298,24,298,30],[298,31,298,36],[298,37,298,42],[299,0,299,1],[299,2,299,23],[299,24,299,30],[299,31,299,36],[299,37,299,42],[300,0,300,1],[300,2,300,23],[300,24,300,30],[300,31,300,36],[300,37,300,42],[301,0,301,1],[301,2,301,23],[301,24,301,30],[301,31,301,36],[301,37,301,42],[302,0,302,1],[302,2,302,23],[302,24,302,30],[302,31,302,36],[302,37,302,42],[303,0,303,23],[303,24,303,30],[303,31,303,36],[303,37,303,42],[304,0,304,60],[307,7,307,41],[307,42,309,60],[308,7,308,41],[309,7,309,41],[319,38,319,52],[319,53,319,60],[320,0,320,24],[320,25,320,31],[320,32,320,60],[322,0,323,1],[322,2,323,23],[322,24,322,60],[323,24,323,30],[323,31,323,36],[323,37,323,42],[324,0,324,1],[324,2,324,23],[324,24,324,30],[324,31,324,36],[324,37,324,42],[325,0,325,1],[325,2,325,23],[325,24,325,30],[325,31,325,36],[325,37,325,42],[326,0,326,1],[326,2,326,23],[326,24,326,30],[326,31,326,36],[326,37,326,42],[327,0,327,1],[327,2,327,23],[327,24,327,30],[327,31,327,36],[327,37,327,42],[328,0,328,1],[328,2,328,23],[328,24,328,30],[328,31,328,36],[328,37,328,42],[329,0,329,1],[329,2,329,23],[329,24,329,30],[329,31,329,36],[329,37,329,42],[330,0,330,1],[330,2,330,23],[330,24,330,30],[330,31,330,36],[330,37,330,42],[331,0,331,23],[331,24,331,30],[331,31,331,36],[331,37,331,42],[332,0,332,60],[335,7,335,41],[335,42,337,60],[336,7,336,41],[337,7,337,41],[331,43,331,60],[338,0,340,60],[341,0,341,60],[342,0,342,40],[342,44,342,52],[342,53,342,60],[344,0,344,13],[344,14,344,60],[345,0,345,13],[345,14,345,60],[346,0,346,17],[346,18,346,32],[346,33,346,52],[346,53,346,60],[347,0,347,24],[347,25,347,37],[347,38,347,52],[347,53,347,60],[348,0,348,24],[348,25,348,31],[348,32,348,60],[350,0,351,1],[350,2,351,23],[350,24,350,60],[351,24,351,30],[351,31,351,36],[351,37,351,42],[352,0,352,1],[352,2,352,23],[352,24,352,30],[352,31,352,36],[352,37,352,42],[351,43,351,60],[352,43,352,60],[353,0,353,1],[353,2,353,23],[353,24,353,30],[353,31,353,36],[353,37,353,42],[353,43,353,60],[354,43,354,60],[355,43,355,60],[356,0,356,1],[356,2,356,23],[356,24,356,30],[356,31,356,36],[356,37,356,42],[357,0,357,1],[357,2,357,23],[357,24,357,30],[357,31,357,36],[357,37,357,42],[354,0,354,1],[354,2,354,23],[354,24,354,30],[354,31,354,36],[354,37,354,42],[355,0,355,1],[355,2,355,23],[355,24,355,30],[355,31,355,36],[355,37,355,42],[358,0,358,1],[358,2,358,23],[358,24,358,30],[358,31,358,36],[358,37,358,42],[356,43,356,60],[357,43,357,60],[358,43,358,60],[359,0,359,23],[359,24,359,30],[359,31,359,36],[359,37,359,42],[359,43,359,60],[360,0,360,60],[363,7,363,41],[363,42,365,60],[364,7,364,41],[365,7,365,41],[366,0,368,60],[369,0,369,60],[370,0,370,40],[370,44,370,52],[370,53,370,60],[372,0,372,13],[372,14,372,60],[373,0,373,13],[373,14,373,60],[374,0,374,17],[374,18,374,32],[374,33,374,52],[374,53,374,60],[375,0,375,24],[375,25,375,37],[375,38,375,52],[375,53,375,60],[376,0,376,24],[376,25,376,31],[376,32,376,60],[378,0,379,1],[378,2,379,23],[378,24,378,60],[379,24,379,30],[379,31,379,36],[379,37,379,42],[379,43,379,60],[382,0,382,1],[382,2,382,23],[382,24,382,30],[382,31,382,36],[382,37,382,42],[380,43,380,60],[381,43,381,60],[382,43,382,60],[383,0,383,1],[383,2,383,23],[383,24,383,30],[383,31,383,36],[383,37,383,42],[383,43,383,60],[380,0,380,1],[380,2,380,23],[380,24,380,30],[380,31,380,36],[380,37,380,42],[381,0,381,1],[381,2,381,23],[381,24,381,30],[381,31,381,36],[381,37,381,42],[387,43,387,60],[384,0,384,1],[384,2,384,23],[384,24,384,30],[384,31,384,36],[384,37,384,42],[385,0,385,1],[385,2,385,23],[385,24,385,30],[385,31,385,36],[385,37,385,42],[405,0,405,1],[405,2,405,23],[405,24,405,30],[405,31,405,36],[405,37,405,42],[384,43,384,60],[385,43,385,60],[394,0,396,60],[397,0,397,60],[386,0,386,1],[386,2,386,23],[386,24,386,30],[386,31,386,36],[386,37,386,42],[387,0,387,23],[387,24,387,30],[387,31,387,36],[387,37,387,42],[388,0,388,60],[391,7,391,41],[391,42,393,60],[392,7,392,41],[393,7,393,41],[386,43,386,60],[402,31,402,36],[402,37,402,42],[403,0,403,1],[403,2,403,23],[403,24,403,30],[403,31,403,36],[403,37,403,42],[404,0,404,1],[404,2,404,23],[404,24,404,30],[404,31,404,36],[404,37,404,42],[193,0,193,29],[409,0,409,23],[409,24,409,30],[409,31,409,36],[409,37,409,42],[410,0,410,60],[406,31,406,36],[406,37,406,42],[407,0,407,1],[407,2,407,23],[407,24,407,30],[407,31,407,36],[407,37,407,42],[408,0,408,1],[408,2,408,23],[408,24,408,30],[408,31,408,36],[408,37,408,42],[406,0,406,1],[406,2,406,23],[406,24,406,30],[402,0,402,1],[402,2,402,23],[402,24,402,30]]}
[null,null,null,null,null,null,"MINISTERUL AGRICULTURII ŞI DEZVOLTĂRII RURALE"]
[null,null,null,null,null,null,"AGENŢIA PENTRU FINANŢAREA INVESTIŢIILOR RURALE"]
[]
[null,null,null,null,null,null,null,null,null,null,null,null,null,null,null,null,null,null,null,null,null,null,null,null,null,null,null,null,null,null,null,null,null,null,null,null,null,null,null,null,null,null,"SECŢIUNE GENERALĂ"]
[]
["DATE DE ÎNREGISTRARE",null,null,null,null,null,null,null,null,null,null,null,null,null,null,null,null,null,null,null,null,null,null,null,null,null,null,null,null,null,null,null,null,null,null,null,"NUME ŞI PRENUME DIRECTOR OJFIR/"]
[null,null,null,null,null,null,null,null,null,null,null,null,null,null,null,null,null,null,null,null,null,null,null,null,null,null,null,null,null,null,null,null,null,null,null,null,"DIRECTOR GENERAL ADJUNCT CRFIR"]
["Se completeaza de catre Agentia pentru Finantarea Investițiilor Rurale-Oficiul Judetean/"]
["Centrul Regional - Inființarea grupurilor de producători în sectorul agricol."]
["OJFIR/CRFIR",null,null,null,null,null,null,null,null,null,null,null,null,null,null,null,null,null,null,null,null,null,null,null,null,null,null,null,null,null,null,null,null,null,null,null,"SEMNATURA Director OJFIR/Director General\nAdjunct CRFIR\nStampila OJFIR/CRFIR"]
[null,null,null,null,null,null,null,null,null,null,null,null,null,null,null,null,null,null,null,null,null,null,null,null,null,null,null,null,null,null,null,null,null,null,null,null,"Adjunct CRFIR"]
["Număr "]
["înregistrare",null,null,null,null,null,null,null,null,null,null,null,null,null,null,null,null,null,null,null,null,null,null,null,null,null,null,null,null,null,null,null,null,null,null,null,"Stampila OJFIR/CRFIR"]
[]
[]
[]
[]
["Data Înregistrării"]
["Numele şi prenumele persoanei care înregistrează"]
["Semnătura:"]
["Data primirii cererii de finanţare la contractare:"]
["Se completează de către solicitant"]
["PREZENTARE GENERALĂ PROIECT"]
[]
[null,"A1 Măsura: M4/3A Scheme de calitate pentru produse agricole și alimentare"]
[null,null,null,null,null,null,null,null,"M4/3A Scheme de calitate pentru produse agricole și alimentare"]
[null,null,null,null,"denumirea măsurii din SDL"]
[null,"A2 Denumire solicitant:"]
[]
[null,"A3 Titlu proiect:"]
[]
[null,"A4 Descrierea succintă a planului de acțiuni:"]
[]
[null,"Denumire consultant:",null,null,null,null,null,null,null,null,null,null,null,null,null,null,null,null,null,null,null,null,null,null,null,null,null,null,null,null,null,null,null,null,"Consultant - Cod Unic de Înregistrare (CUI):"]
[]
[]
[]
[null,null,null,null,null,null,null,null,null,null,null,null,null,null,null,null,null,null,null,null,null,null,null,null,null,null,null,null,null,null,null,null,null,null,"Consultant - Număr înregistrare la ONRC:"]
[]
[]
[null,null,"A5. Amplasarea proiectului:"]
[]
["Regiunea de dezvoltare:",null,null,null,null,null,null,null,null,null,null,null,null,null,null,null,null,null,null,null,null,null,null,null,null,null,null,"Judeţ:"]
[]
[null,"Obiectivele investiţiei",null,null,null,null,null,null,null,null,null,null,null,null,null,"Judeţ",null,null,null,null,null,null,null,null,null,null,null,"Comună/Oraş",null,null,null,null,null,null,null,null,null,null,null,"Sat/Sector",null,null,null,null,null,null,null,null,null,null,"Sat/Sector"]
[]
[]
[]
[]
[]
[]
[]
[]
[]
[]
[]
[]
[]
[]
[]
[]
[]
[]
[]
[]
[]
[]
[]
[]
[]
[]
[]
[]
[]
[]
[]
[]
[]
[]
[]
[]
[]
[]
[null,null,null,"A 6. ",null,"Prescorare"]
[null,"Detaliere criterii de selecţie îndeplinite de solicitant:"]
[]
[]
[]
[]
[]
[]
[]
[]
["B INFORMAŢII PRIVIND SOLICITANTUL"]
["B1 Descrierea solicitantului"]
["B1.1 Informaţii privind solicitantul"]
[null,"Data înființării",null,null,null,null,null,null,null,null,null,null,null,null,null,null,null,null,null,"Cod Unic de Înregistrare și/sau Codul de",null,null,null,null,null,null,null,null,null,null,null,null,null,null,null,null,null,null,null,null,null,null,null,"Statut juridic al solicitantului"]
[null,null,null,null,null,null,null,null,null,null,null,null,null,null,null,null,null,null,null,"Înregistrare Fiscală"]
[]
[]
[null,"Număr de înregistrare în registrul comerțului"]
[]
[null,"Codul CAEN al activităţii/activităţilor finanţate prin proiect:"]
[]
[]
[null,null,null,null,null,null,null,null,null,null,null,null,null,null,null,null,null,null,null,null,null,null,null,null,null,null,null,null,null,null,null,null,null,null,null,null,null,null,null,null,null,"`"]
[null,"Codul unic de înregistrare APIA",null,null,null,null,null,null,null,null,null,null,null,null,null,null,null,null,null,null,null,null,null,null,null,null,null,null,null,null,null,null,null,null,null,null,"Anul atribuirii codului"]
[]
[null,"Codul Registru Național al Exploatațiilor ANSVSA:",null,null,null,null,null,null,null,null,null,null,null,null,null,null,null,null,null,null,null,null,null,null,null,null,null,null,null,null,null,null,null,null,null,null,"Anul atribuirii codului"]
[]
[null,"Codul Registru Național al Exploatațiilor ANSVSA pentru Asociație/Cooperativă:"]
[null,null,null,null,null,null,null,"(obligatoriu pentru fermele zootehnice)"]
[]
[null,"B1.2 Sediul social "]
[null,"Judeţ",null,null,null,null,null,null,null,null,null,null,null,null,null,null,null,null,null,null,null,null,"Localitate",null,null,null,null,null,null,null,null,null,null,null,null,null,null,null,null,null,null,null,"Sat"]
[]
[null,"Cod Poştal",null,null,null,null,null,null,null,null,null,null,null,null,null,"Strada",null,null,null,null,null,null,null,null,null,null,null,null,null,null,null,null,null,null,null,null,null,null,null,null,null,null,null,null,null,null,null,null,null,null,null,null,"Nr."]
[]
[null,"Bloc",null,null,null,null,null,null,null,null,null,null,null,null,null,null,null,"Scara",null,null,null,null,null,null,null,null,null,null,null,null,null,null,"Et. ",null,null,null,null,null,null,"Ap.",null,null,null,null,null,null,"Sector"]
[]
[null,"Telefon fix/ mobil",null,null,null,null,null,null,null,null,null,null,null,null,null,null,null,null,null,null,"Fax",null,null,null,null,null,null,null,null,null,null,null,null,null,null,null,"E-mail"]
[]
[]
[null,"B1.3 Numele şi prenumele reprezentantului legal şi funcţia acestuia în cadrul organizaţiei, precum şi"]
[null,"specimenul de semnatură:"]
[]
[null,null,null,"Numele",null,null,null,null,null,null,null,null,null,null,"Prenumele",null,null,null,null,null,null,null,null,null,null,"Funcţia",null,null,null,null,null,null,null,null,null,null,"Reprezentant legal",null,null,null,null,null,null,null,null,null,null,"Specimen de"]
[null,null,null,null,null,null,null,null,null,null,null,null,null,null,null,null,null,null,null,null,null,null,null,null,null,null,null,null,null,null,null,null,null,null,null,null,null,null,null,null,null,null,null,null,null,null,null,"semnătură"]
[]
[null,null,null,null,null,null,null,null,null,null,null,null,null,null,null,null,null,null,null,null,null,null,null,null,null,null,null,null,null,null,null,null,null,null,null,null,"LEGAL"]
[]
[]
["B2 Informaţii referitoare la reprezentantul legal de proiect"]
[null,"B2.1 Date de identitate ale reprezentantului legal de proiect"]
[]
[null,null,null,"Data naşterii",null,null,null,null,null,null,null,null,null,null,null,null,null,null,null,null,null,null,null,null,"Cod numeric personal"]
[]
[]
[]
[]
[null,null,null,null,"Act de identitate",null,null,null,null,null,null,null,null,null,null,null,null,null,"Seria",null,null,"Nr.",null,null,null,null,null,null,"Eliberat la data de",null,null,null,null,null,null,null,null,"de:",null,null,null,null,null,null,null,null,null,null,null,null,null,"Valabil până la:"]
[null,null,null,null,"B.I.",null,null,"C.I.",null,null,"Paşaport"]
[]
[]
[]
[null,"B2.2 Domiciliul stabil al reprezentantului legal de proiect"]
[null,"Judeţ",null,null,null,null,null,null,null,null,null,null,null,null,null,null,null,null,null,null,null,null,"Localitate",null,null,null,null,null,null,null,null,null,null,null,null,null,null,null,null,null,null,null,"Sat"]
[]
[null,"Cod Poştal",null,null,null,null,null,null,null,null,null,null,"Strada",null,null,null,null,null,null,null,null,null,null,null,null,null,null,null,null,null,"Nr.",null,null,null,null,null,"Bloc",null,null,null,null,null,null,null,null,null,null,null,"Scara",null,null,null,null,null,"Ap."]
[]
[null,"Telefon fix",null,null,null,null,null,null,null,null,null,null,null,null,null,null,null,null,null,null,"Telefon mobil",null,null,null,null,null,null,null,null,null,null,null,null,null,null,null,null,null,"Fax"]
[]
[null,"E-mail"]
[]
[]
["                                              REGULI DE COMPLETARE\n\nSe va completa Declarația pe propria răspundere a solicitantului, cu datele solicitate (denumire/nume prenume solicitant, titlul proiectului), și se vor bifa toate angajamentele menționate în cuprinsul acesteia.\n\nTrebuie bifate şi anexate documentele 1, 2, 3, 4, 5, 11 de pe coloana Depunere-'Obligatoriu pentru toate proiectele' din secţiunea E.Lista documentelor anexate.\n\nSe va completa tabelul cu indicatorii de monitorizare în conformitate cu precizările din subsolul tabelului.\n\n"]
[]
[]
[]
[]
[]
[]
[]
[]
[]
[]
[]
[]
[]
["MINISTERUL AGRICULTURII ŞI DEZVOLTĂRII RURALE",null,null,null,null,null,null,null,null,null,null,null,null,null,null,null,null,null,null,null,null,null,null,null,null,null,null,null,null,null,"SECTIUNE SPECIFICA MASURA M4/3A"]
["AGENŢIA PENTRU FINANŢAREA INVESTIŢIILOR RURALE"]
[]
[]
["E. LISTA DOCUMENTELOR ANEXATE PROIECTELOR AFERENTE MĂSURII M4/3A",null,null,null,null,null,null,null,null,null,null,null,null,null,null,null,null,null,null,null,null,null,null,null,null,null,null,null,null,null,null,null,null,null,null,null,null,null,null,null,null,null,null,null,null,null,null,null,null,null,null,null,null,null,null,"OPIS"]
[null,null,null,null,null,null,null,null,null,null,null,null,null,null,null,null,null,null,null,null,null,null,null,null,null,null,null,null,null,null,null,null,null,null,null,null,null,null,null,null,null,null,null,null,null,null,null,null,null,null,null,null,null,null,null,"documente"]
["Documentele se vor anexa cererii de finanțare în ordinea de mai jos:"]
["Lista documente",null,null,null,null,null,null,null,null,null,null,null,null,null,null,null,null,null,null,null,null,null,null,null,null,null,null,null,null,null,"Obligatoriu pentru toate proiectele",null,null,null,null,"Obligatoriu, dacă proiectul impune",null,null,null,null,null,null,"PAGINA de   la - până la",null,null,null,null,null,null,null,"Obligatoriu pentru toate proiectele",null,null,null,null,"Obligatoriu, dacă proiectul impune"]
["ETAPA:",null,null,null,null,null,null,null,null,null,null,null,null,null,null,null,null,null,null,null,null,null,null,null,null,null,null,null,null,null,"DEPUNERE",null,null,null,null,null,null,null,null,null,null,null,null,null,null,null,null,null,null,null,"CONTRACTARE"]
["1. Planul de acțiuni."]
["2. Copia actului de identitate a reprezentantului legal."]
["3. Certificatul de înregistrare (inclusiv anexele) si certificat constatator  eliberate de Oficiul Registrului Comerţului conform legislaţiei naţionale cu modificările şi completările ulterioare;sau"]
["      Statut pentru  Cooperativa agricolă(înființată în baza Legii nr. 566/2004), cu modificările și  completările ulterioare, din care să reiasă că aceasta se încadrează în categoria  cooperativă agricolă."]
["4. Declarație pe proprie răspundere a solicitantului prin care se angajează\nca, la comercializare, etichetele sau ambalajele produselor obținute conform\nschemelor de calitate, să fie inscripționate cu logo-ul aferent schemei."]
["5. Precontract/Contract încheiat cu un Organism de Inspecție și Certificare acreditat de RENAR și recunoscut de MADR."]
["6. FIȘA DE ÎNREGISTRARE A PRODUCĂTORILOR ÎN AGRICULTURĂ ECOLOGICĂ, eliberată de DAJ/DAM București."]
["7.Adeverință dovedind calitatea de membru intr o forma asociativa din teritoriul Gal Valea Somesului."]
["8. Adresă emisă de bancă/trezorerie cu datele de identificare ale acesteia și ale contului aferent proiectului FEADR (denumirea, adresa bancă/trezorerie, codul IBAN al contului de operațiuni cu AFIR)."]
["9. Certificate care atestă lipsa datoriilor restante fiscale și sociale, valabile la încheierea contractului de finanțare."]
["10. Cazierul judiciar al solicitantului (fară înscrieri privind sancțiuni economico-financiare în original), valabil la momentul încheierii contractului de finanțare."]
["11. Declarație privind acceptul pentru utilizarea datelor cu caracter personal."]
[" ALTE DOCUMENTE JUSTIFICATIVE (SE VOR SPECIFICA DUPĂ CAZ) pe care solicitantul le poate aduce în scopul susținerii cererii de finanțare"]
["12.Calculul coeficientilorde producție standard (SO uri)"]
["13 . Ultima cerere de plata unica pe suprafata depusa la APIA"]
["14.Adeverinta cu efectivul de animale cu viza DSVSA pentru obtinerea punctajul in cadrul criteriului de selectie CS1. Solicitantul se încadrează în categoria ferme mici."]
[]
[]
[]
[]
["F. DECLARAŢIE PE PROPRIA RĂSPUNDERE A SOLICITANTULUI"]
["Prin aceasta declarație solicitantul"]
[null,{"$f":"IF(B29=\"\",\"\",B29)","v":""}]
["care solicită asistență financiară nerambursabilă prin Programul National de Dezvoltare Rurală (PNDR) pentru proiectul intitulat"]
[null,{"$f":"IF(B31=\"\",\"\",B31)","v":""}]
["prin responsabil legal"]
[null,{"$f":"IF(D129=\"\",\"\",D129)","v":""},null,null,null,null,null,null,null,null,null,null,null,null,null,null,null,null,null,null,null,null,null,null,null,null,null,null,null,null,null,{"$f":"IF(O129=\"\",\"\",O129)","v":""}]
["cunoscând prevederile legii penale cu privire la falsul în declarații:"]
[1,null,null,"Declar pe propria răspundere că proiectul propus asistenţei financiare nerambursabile FEADR nu beneficiază de altă finanţare din programe de finanţare nerambursabilă. De asemenea mă angajez ca, în cazul în care proiectul va fi selectat pentru finanţare FEADR, să nu depun acest proiect la nici un alt program de finanţare nerambursabilă la care proiectul poate fi în întregime sau parţial eligibil pentru asistenţă."]
[2,null,null,"Declar pe propria răspundere că îndeplinesc condiţiile de eligibilitate prevăzute în fişa submăsurii şi ghidul solicitantului şi mă angajez să le respect pe o perioadă egală cu perioada de implementare a proiectului, începând cu anul depunerii cererii de finanțare."]
[3,null,null,"Declar pe propria răspundere că acționez în nume propriu și că toate informaţiile din prezenta cerere de finanţare şi din documentele anexate sunt corecte şi mă angajez să respect condiţiile cerute în reglementările referitoare la prezentul program şi pe cele legate de proiectul anexat şi să furnizez periodic, la cerere, documente justificative necesare."]
[" 4  Declar pe propia răspundere că eu şi organizaţia pe care o reprezint nu suntem într-unul din următoarele cazuri:"]
[null,null,null,"În procedură de executare silită, reorganizare judiciară, faliment, închidere operaţională, dizolvare, lichidare sau\nadministrare specială, nu au activitatea suspendată sau alte situaţii similare reglementate de lege;"]
[null,null,null,"Acuzați din cauza unei greşelli privind conduita profesională, avand ca soluţie finală resjudicata (împotriva căreia nici un\napel nu este posibil);"]
[null,null,null,"Vinovat de grave deficiente de conduită profesională dovedite prin orice mijloace pe care AFIR le poate justifica;"]
[null,null,null,"Vinovat de faptul ca nu am prezentat informațiile cerute de autoritatea contractantă;"]
[null,null,null,"Încălcarea prevederilor contractuale prin care nu ne-am îndeplinit obligaţiile contractuale în legatură cu un alt contract cu Agenţia, prin Programul SAPARD, PNDR sau alte contracte finanţate din fonduri comunitare;"]
[null,null,null,"Încercarea de a obtine informații confidentiale sau de influențare a AFIR in timpul procesului de evaluare a proiectului și nu voi face presiuni la adresa evaluatorului."]
[5,null,null,"Declar pe propria răspundere că, în cazul în care nu respect oricare din punctele prevazute în declaraţie, proiectul să devină neeligibil în baza criteriului \"Eligibilitatea solicitantului\" sau contractul să fie reziliat."]
[6,null,null,"Mă angajez să respect toate cerințele ce decurg din legislația în vigoare referitoare la schema pentru care  și să fac dovada respectării specificațiilor schemei eligibile la care particip pe tot parcursul implementării proiectului."]
[7,null,null,"Mă angajez să asigur surse financiare stabile și suficiente pe tot parcursul implementării proiectului."]
[8,null,null,"Declar pe propria răspundere că nu am înscrisuri care privesc sancțiuni economico-financiare în cazierul judiciar pe care mă oblig să îl depun la încheierea contractului de finanţare . Prin prezenta îmi exprim consimțământul ca AFIR să solicite instituțiilor abilitate conform legii, extrasul de pe cazierul judiciar privind situația mea.\n(Până la reglementarea posibilităţii aplicării de către experţii evaluatori AFIR a normelor metodologice aferente Legii nr. 290/2004 privind cazierul judiciar, cu modificările şi completările ulterioare, solicitantul are obligaţia depunerii documentului justificativ mai sus enunţat.)"]
[9,null,null,"Declar pe propria răspundere ca nu am fapte înscrise în cazierul fiscal."]
[10,null,null,"Declar pe propria răspundere că dosarul cererii de finanţare, în original, va fi identic cu dosarul cererii de finanţare electronic. "]
[11,null,null,"Declar pe proprie răspundere că:"]
[null,null,null,null,null,"Nu sunt înregistrat în scopuri TVA şi că mă angajez să notific AFIR orice modificare a situaţiei privind înregistrarea ca\nplătitor de TVA, în maxim 10 (zece) zile de la data înregistrării în scopuri TVA;"]
[null,null,null,null,null,"Sunt înregistrat în scopuri de TVA (certificat de înregistrare fiscală în scopuri de TVA);"]
[12,null,null,null,null,"Declar pe propria răspundere că organizaţia pe care o reprezint este înregistrată în registrul debitorilor AFIR şi mă\nangajez că datoria faţă de AFIR, inclusiv dobânzile şi majorările de întârziere, va fi achitată integral până la semnarea contractului de finanţare;"]
[]
[]
[]
["Semnătura reprezentant legal şi ştampila",null,null,null,null,null,null,null,null,null,null,null,null,null,null,null,null,null,null,null,null,null,null,null,null,null,null,null,null,null,null,null,null,null,null,null,null,null,null,null,null,"Data (zz/ll/aaaa)"]
[]
[]
[]
["Anexa INDICATORI DE MONITORIZARE"]
["1. Cod RO"]
["2. Cod CAEN"]
["3. Numărul de exploatații sprijinite"]
["4. Tipuri de sprijin",null,null,null,null,null,null,null,null,null,null,null,null,null,null,null,null,"Sprijin pentru noii participanți la schemele de calitate ale UE"]
[null,null,null,null,null,null,null,null,null,null,null,null,null,null,null,null,null,"Sprijin pentru noii participanți la schemele de calitate naționale"]
[]
["5. Numărul de exploatații agricole care primesc sprijin pentru participarea la sistemele de calitate, la piețele locale și la circuitele de aprovizionare scurte, precum și la grupuri / organizații de producători"]
[null,"6.Cheltuielile publice totale"]
["7.Locuri de muncă create "]
["Indic. nr.1 - reprezintă codul de înregistrare al beneficiarului în Registrul Fermierilor la APIA;"]
["Indic. nr.2 - reprezintă codul CAEN pentru investiția vizată prin proiect;"]
["Indic. nr.3 - se va completa numărul exploataţiilor pentru care se primește sprijin;"]
["Indic. nr.4 - se va bifa doar o singură categorie, în funcție de tipul schemei pentru care se acordă sprijin.                                Indicatorul nr. 5 – se completează numărul exploataţiilor agricole care  primesc sprijin pentru participarea la sistemele de calitate\nIndicatorul nr.6 – se completează cu valoarea cheltuilii publice totale\nIndicatorul nr. 7 – se completeaza cu nr. de locuri de muncă create in cadrul domeniului de interventie  6A\n"]
[]
[]
[null,null,null,null,null,null,null,"MINISTERUL AGRICULTURII ŞI DEZVOLTĂRII RURALE",null,null,null,null,null,null,null,null,null,null,null,null,null,null,null,null,null,null,null,null,null,null,null,null,null,null,null,null,null,null,null,null,null,null,"măsura M4/3A"]
[]
[null,null,null,null,null,null,null,"AGENŢIA PENTRU FINANŢAREA INVESTIŢIILOR RURALE"]
[]
[]
[]
["CHELTUIELI ELIGIBILE PE EXPLOATAȚIE"]
["CURS   VALUTAR             1 EURO =",null,null,null,null,null,null,null,null,null,null,null,null,null,null,null,null,null,null,null,null,null,null,null,null,null,null,null,null,null,null,null,null,null,null,null,null,null,null,null,null,null,null,null,null,null,null,null,null,null,null,null,null,"LEI"]
[]
["Denumire fermier activ"]
["Cod CUI/CIF fermier activ"]
["Codul unic de înregistrare APIA     -",null,null,null,null,null,null,null,null,null,null,null,null,null,null,null,null,null,null,null,null,null,null,null,null,null,null,null,null,null,null,null,null,"Anul atribuirii codului   -"]
["Cod Registru Național al Exploatațiilor ANSVSA -",null,null,null,null,null,null,null,null,null,null,null,null,null,null,null,null,null,null,null,null,null,null,null,null,null,null,null,null,null,null,null,null,null,null,null,null,null,"Anul atribuirii codului  -"]
["Codul CAEN al activității finanțate prin proiect -"]
[]
["Nr. crt.",null,"Tipurile de cheltuieli eligibile",null,null,null,null,null,null,null,null,null,null,null,null,null,null,null,null,null,null,null,null,null,"Valoare estimată\n- euro*/exploatație** -"]
[null,null,null,null,null,null,null,null,null,null,null,null,null,null,null,null,null,null,null,null,null,null,null,null,"Anul 1",null,null,null,null,null,null,"Anul 2",null,null,null,null,null,"Anul 3",null,null,null,null,null,"Total"]
["1.",null,"Costuri aferente aderării la schema de calitate eligibilă",null,null,null,null,null,null,null,null,null,null,null,null,null,null,null,null,null,null,null,null,null,{"$f":"SUM(Y268:AE271)","v":0},null,null,null,null,null,null,{"$f":"SUM(AF268:AK271)","v":0},null,null,null,null,null,{"$f":"SUM(AL268:AQ271)","v":0},null,null,null,null,null,{"$f":"SUM(BD268:BI271)","v":0}]
["1a",null,"Costuri pentru inițierea certificării",null,null,null,null,null,null,null,null,null,null,null,null,null,null,null,null,null,null,null,null,null,null,null,null,null,null,null,null,null,null,null,null,null,null,null,null,null,null,null,null,{"$f":"SUM(Y268:BC268)","v":0}]
["1b",null,"Costuri pentru controlul solicitantului",null,null,null,null,null,null,null,null,null,null,null,null,null,null,null,null,null,null,null,null,null,null,null,null,null,null,null,null,null,null,null,null,null,null,null,null,null,null,null,null,0]
["1c",null,"Cheltuieli aferente testării în urma căreia se certifică\nconformitatea cu specificațiile de calitate",null,null,null,null,null,null,null,null,null,null,null,null,null,null,null,null,null,null,null,null,null,null,null,null,null,null,null,null,null,null,null,null,null,null,null,null,null,null,null,null,0]
["1d",null,"Costuri pentru evaluarea dosarului solicitantului",null,null,null,null,null,null,null,null,null,null,null,null,null,null,null,null,null,null,null,null,null,null,null,null,null,null,null,null,null,null,null,null,null,null,null,null,null,null,null,null,0]
["2.",null,"Contribuția anuală de participare la schema de calitate către Organismul de control/certificare.",null,null,null,null,null,null,null,null,null,null,null,null,null,null,null,null,null,null,null,null,null,null,null,null,null,null,null,null,null,null,null,null,null,null,null,null,null,null,null,null,0]
["3.",null,"Cheltuieli aferente controalelor necesare pentru verificarea respectării specificațiilor schemei pentru verificarea specificațiilor de îndeplinire a conformității anuale",null,null,null,null,null,null,null,null,null,null,null,null,null,null,null,null,null,null,null,null,null,null,null,null,null,null,null,null,null,null,null,null,null,null,null,null,null,null,null,null,0]
["TOTAL",null,null,null,null,null,null,null,null,null,null,null,null,null,null,null,null,null,null,null,null,null,null,null,{"$f":"Y267+Y272+Y273","v":0},null,null,null,null,null,null,{"$f":"AF267+AF272+AF273","v":0},null,null,null,null,null,{"$f":"AL267+AL272+AL273","v":0},null,null,null,null,null,0]
["*Rata de conversie între euro și moneda națională pentru România, este cea publicată de Banca Central Europeană la adresa: http://www.ecb.int/index.html, la data întocmirii Planului de acțiuni.\n**În cazul grupurilor de fermieri, tabelul se va completa pentru fiecare exploatație în parte.\nOBSERVAȚIE:\nTVA nu este considerată eligibilă, cu excepția cazului în care nu poate fi recuperată în conformitate cu legislația națională privind TVA."]
[]
[]
[]
[]
[null,null,null,null,null,null,null,"MINISTERUL AGRICULTURII ŞI DEZVOLTĂRII RURALE",null,null,null,null,null,null,null,null,null,null,null,null,null,null,null,null,null,null,null,null,null,null,null,null,null,null,null,null,null,null,null,null,null,null,"măsura M4/3A"]
[]
[null,null,null,null,null,null,null,"AGENŢIA PENTRU FINANŢAREA INVESTIŢIILOR RURALE"]
[]
[]
[]
["CHELTUIELI ELIGIBILE PE EXPLOATAȚIE"]
["CURS   VALUTAR             1 EURO =",null,null,null,null,null,null,null,null,null,null,null,null,null,null,null,null,null,null,null,null,null,null,null,null,null,null,null,null,null,null,null,null,null,null,null,null,null,null,null,null,null,null,null,null,null,null,null,null,null,null,null,null,"LEI"]
[]
["Denumire fermier activ"]
["Cod CUI/CIF fermier activ"]
["Codul unic de înregistrare APIA     -",null,null,null,null,null,null,null,null,null,null,null,null,null,null,null,null,null,null,null,null,null,null,null,null,null,null,null,null,null,null,null,null,"Anul atribuirii codului   -"]
["Cod Registru Național al Exploatațiilor ANSVSA -",null,null,null,null,null,null,null,null,null,null,null,null,null,null,null,null,null,null,null,null,null,null,null,null,null,null,null,null,null,null,null,null,null,null,null,null,null,"Anul atribuirii codului  -"]
["Codul CAEN al activității finanțate prin proiect -"]
[]
["Nr. crt.",null,"Tipurile de cheltuieli eligibile",null,null,null,null,null,null,null,null,null,null,null,null,null,null,null,null,null,null,null,null,null,"Valoare estimată\n- euro*/exploatație** -"]
[null,null,null,null,null,null,null,null,null,null,null,null,null,null,null,null,null,null,null,null,null,null,null,null,"Anul 1",null,null,null,null,null,null,"Anul 2",null,null,null,null,null,"Anul 3",null,null,null,null,null,"Total"]
["1.",null,"Costuri aferente aderării la schema de calitate eligibilă",null,null,null,null,null,null,null,null,null,null,null,null,null,null,null,null,null,null,null,null,null,{"$f":"SUM(Y298:AE301)","v":0},null,null,null,null,null,null,{"$f":"SUM(AF298:AK301)","v":0},null,null,null,null,null,{"$f":"SUM(AL298:AQ301)","v":0}]
["1a",null,"Costuri pentru inițierea certificării",null,null,null,null,null,null,null,null,null,null,null,null,null,null,null,null,null,null,null,null,null,null,null,null,null,null,null,null,null,null,null,null,null,null,null,null,null,null,null,null,{"$f":"SUM(Y298:BC298)","v":0}]
["1b",null,"Costuri pentru controlul solicitantului",null,null,null,null,null,null,null,null,null,null,null,null,null,null,null,null,null,null,null,null,null,null,null,null,null,null,null,null,null,null,null,null,null,null,null,null,null,null,null,null,0]
["1c",null,"Cheltuieli aferente testării în urma căreia se certifică\nconformitatea cu specificațiile de calitate",null,null,null,null,null,null,null,null,null,null,null,null,null,null,null,null,null,null,null,null,null,null,null,null,null,null,null,null,null,null,null,null,null,null,null,null,null,null,null,null,0]
["1d",null,"Costuri pentru evaluarea dosarului solicitantului",null,null,null,null,null,null,null,null,null,null,null,null,null,null,null,null,null,null,null,null,null,null,null,null,null,null,null,null,null,null,null,null,null,null,null,null,null,null,null,null,0]
["2.",null,"Contribuția anuală de participare la schema de calitate către Organismul de control/certificare.",null,null,null,null,null,null,null,null,null,null,null,null,null,null,null,null,null,null,null,null,null,null,null,null,null,null,null,null,null,null,null,null,null,null,null,null,null,null,null,null,0]
["3.",null,"Cheltuieli aferente controalelor necesare pentru verificarea respectării specificațiilor schemei pentru verificarea specificațiilor de îndeplinire a conformității anuale",null,null,null,null,null,null,null,null,null,null,null,null,null,null,null,null,null,null,null,null,null,null,null,null,null,null,null,null,null,null,null,null,null,null,null,null,null,null,null,null,0]
["TOTAL",null,null,null,null,null,null,null,null,null,null,null,null,null,null,null,null,null,null,null,null,null,null,null,{"$f":"Y297+Y302+Y303","v":0},null,null,null,null,null,null,{"$f":"AF297+AF302+AF303","v":0},null,null,null,null,null,{"$f":"AL297+AL302+AL303","v":0},null,null,null,null,null,0]
["*Rata de conversie între euro și moneda națională pentru România, este cea publicată de Banca Central Europeană la adresa: http://www.ecb.int/index.html, la data întocmirii Planului de acțiuni.\n**În cazul grupurilor de fermieri, tabelul se va completa pentru fiecare exploatație în parte.\nOBSERVAȚIE:\nTVA nu este considerată eligibilă, cu excepția cazului în care nu poate fi recuperată în conformitate cu legislația națională privind TVA."]
[]
[]
[null,null,null,null,null,null,null,"MINISTERUL AGRICULTURII ŞI DEZVOLTĂRII RURALE",null,null,null,null,null,null,null,null,null,null,null,null,null,null,null,null,null,null,null,null,null,null,null,null,null,null,null,null,null,null,null,null,null,null,"măsura M4/3A"]
[]
[null,null,null,null,null,null,null,"AGENŢIA PENTRU FINANŢAREA INVESTIŢIILOR RURALE"]
[]
[]
[]
["CHELTUIELI ELIGIBILE PE EXPLOATAȚIE"]
["CURS   VALUTAR             1 EURO =",null,null,null,null,null,null,null,null,null,null,null,null,null,null,null,null,null,null,null,null,null,null,null,null,null,null,null,null,null,null,null,null,null,null,null,null,null,null,null,null,null,null,null,null,null,null,null,null,null,null,null,null,"LEI"]
[]
["Denumire fermier activ"]
["Cod CUI/CIF fermier activ"]
["Codul unic de înregistrare APIA     -",null,null,null,null,null,null,null,null,null,null,null,null,null,null,null,null,null,null,null,null,null,null,null,null,null,null,null,null,null,null,null,null,"Anul atribuirii codului   -"]
["Cod Registru Național al Exploatațiilor ANSVSA -",null,null,null,null,null,null,null,null,null,null,null,null,null,null,null,null,null,null,null,null,null,null,null,null,null,null,null,null,null,null,null,null,null,null,null,null,null,"Anul atribuirii codului  -"]
["Codul CAEN al activității finanțate prin proiect -"]
[]
["Nr. crt.",null,"Tipurile de cheltuieli eligibile",null,null,null,null,null,null,null,null,null,null,null,null,null,null,null,null,null,null,null,null,null,"Valoare estimată\n- euro*/exploatație** -"]
[null,null,null,null,null,null,null,null,null,null,null,null,null,null,null,null,null,null,null,null,null,null,null,null,"Anul 1",null,null,null,null,null,null,"Anul 2",null,null,null,null,null,"Anul 3",null,null,null,null,null,"Total"]
["1.",null,"Costuri aferente aderării la schema de calitate eligibilă",null,null,null,null,null,null,null,null,null,null,null,null,null,null,null,null,null,null,null,null,null,{"$f":"SUM(Y326:AE329)","v":0},null,null,null,null,null,null,{"$f":"SUM(AF326:AK329)","v":0},null,null,null,null,null,{"$f":"SUM(AL326:AQ329)","v":0},null,null,null,null,null,{"$f":"SUM(BD326:BI329)","v":0}]
["1a",null,"Costuri pentru inițierea certificării",null,null,null,null,null,null,null,null,null,null,null,null,null,null,null,null,null,null,null,null,null,null,null,null,null,null,null,null,null,null,null,null,null,null,null,null,null,null,null,null,{"$f":"SUM(Y326:BC326)","v":0}]
["1b",null,"Costuri pentru controlul solicitantului",null,null,null,null,null,null,null,null,null,null,null,null,null,null,null,null,null,null,null,null,null,null,null,null,null,null,null,null,null,null,null,null,null,null,null,null,null,null,null,null,0]
["1c",null,"Cheltuieli aferente testării în urma căreia se certifică\nconformitatea cu specificațiile de calitate",null,null,null,null,null,null,null,null,null,null,null,null,null,null,null,null,null,null,null,null,null,null,null,null,null,null,null,null,null,null,null,null,null,null,null,null,null,null,null,null,0]
["1d",null,"Costuri pentru evaluarea dosarului solicitantului",null,null,null,null,null,null,null,null,null,null,null,null,null,null,null,null,null,null,null,null,null,null,null,null,null,null,null,null,null,null,null,null,null,null,null,null,null,null,null,null,0]
["2.",null,"Contribuția anuală de participare la schema de calitate către Organismul de control/certificare.",null,null,null,null,null,null,null,null,null,null,null,null,null,null,null,null,null,null,null,null,null,null,null,null,null,null,null,null,null,null,null,null,null,null,null,null,null,null,null,null,0]
["3.",null,"Cheltuieli aferente controalelor necesare pentru verificarea respectării specificațiilor schemei pentru verificarea specificațiilor de îndeplinire a conformității anuale",null,null,null,null,null,null,null,null,null,null,null,null,null,null,null,null,null,null,null,null,null,null,null,null,null,null,null,null,null,null,null,null,null,null,null,null,null,null,null,null,0]
["TOTAL",null,null,null,null,null,null,null,null,null,null,null,null,null,null,null,null,null,null,null,null,null,null,null,{"$f":"Y325+Y330+Y331","v":0},null,null,null,null,null,null,{"$f":"AF325+AF330+AF331","v":0},null,null,null,null,null,{"$f":"AL325+AL330+AL331","v":0},null,null,null,null,null,{"$f":"AX325+AX330+AX331","v":0}]
["*Rata de conversie între euro și moneda națională pentru România, este cea publicată de Banca Central Europeană la adresa: http://www.ecb.int/index.html, la data întocmirii Planului de acțiuni.\n**În cazul grupurilor de fermieri, tabelul se va completa pentru fiecare exploatație în parte.\nOBSERVAȚIE:\nTVA nu este considerată eligibilă, cu excepția cazului în care nu poate fi recuperată în conformitate cu legislația națională privind TVA."]
[]
[]
[null,null,null,null,null,null,null,"MINISTERUL AGRICULTURII ŞI DEZVOLTĂRII RURALE",null,null,null,null,null,null,null,null,null,null,null,null,null,null,null,null,null,null,null,null,null,null,null,null,null,null,null,null,null,null,null,null,null,null,"măsura M4/3A"]
[]
[null,null,null,null,null,null,null,"AGENŢIA PENTRU FINANŢAREA INVESTIŢIILOR RURALE"]
[]
[]
[]
["CHELTUIELI ELIGIBILE PE EXPLOATAȚIE"]
["CURS   VALUTAR             1 EURO =",null,null,null,null,null,null,null,null,null,null,null,null,null,null,null,null,null,null,null,null,null,null,null,null,null,null,null,null,null,null,null,null,null,null,null,null,null,null,null,null,null,null,null,null,null,null,null,null,null,null,null,null,"LEI"]
[]
["Denumire fermier activ"]
["Cod CUI/CIF fermier activ"]
["Codul unic de înregistrare APIA     -",null,null,null,null,null,null,null,null,null,null,null,null,null,null,null,null,null,null,null,null,null,null,null,null,null,null,null,null,null,null,null,null,"Anul atribuirii codului   -"]
["Cod Registru Național al Exploatațiilor ANSVSA -",null,null,null,null,null,null,null,null,null,null,null,null,null,null,null,null,null,null,null,null,null,null,null,null,null,null,null,null,null,null,null,null,null,null,null,null,null,"Anul atribuirii codului  -"]
["Codul CAEN al activității finanțate prin proiect -"]
[]
["Nr. crt.",null,"Tipurile de cheltuieli eligibile",null,null,null,null,null,null,null,null,null,null,null,null,null,null,null,null,null,null,null,null,null,"Valoare estimată\n- euro*/exploatație** -"]
[null,null,null,null,null,null,null,null,null,null,null,null,null,null,null,null,null,null,null,null,null,null,null,null,"Anul 1",null,null,null,null,null,null,"Anul 2",null,null,null,null,null,"Anul 3",null,null,null,null,null,"Total"]
["1.",null,"Costuri aferente aderării la schema de calitate eligibilă",null,null,null,null,null,null,null,null,null,null,null,null,null,null,null,null,null,null,null,null,null,{"$f":"SUM(Y354:AE357)","v":0},null,null,null,null,null,null,{"$f":"SUM(AF354:AK357)","v":0},null,null,null,null,null,{"$f":"SUM(AL354:AQ357)","v":0},null,null,null,null,null,{"$f":"SUM(BD354:BI357)","v":0}]
["1a",null,"Costuri pentru inițierea certificării",null,null,null,null,null,null,null,null,null,null,null,null,null,null,null,null,null,null,null,null,null,null,null,null,null,null,null,null,null,null,null,null,null,null,null,null,null,null,null,null,{"$f":"SUM(Y354:BC354)","v":0}]
["1b",null,"Costuri pentru controlul solicitantului",null,null,null,null,null,null,null,null,null,null,null,null,null,null,null,null,null,null,null,null,null,null,null,null,null,null,null,null,null,null,null,null,null,null,null,null,null,null,null,null,0]
["1c",null,"Cheltuieli aferente testării în urma căreia se certifică\nconformitatea cu specificațiile de calitate",null,null,null,null,null,null,null,null,null,null,null,null,null,null,null,null,null,null,null,null,null,null,null,null,null,null,null,null,null,null,null,null,null,null,null,null,null,null,null,null,0]
["1d",null,"Costuri pentru evaluarea dosarului solicitantului",null,null,null,null,null,null,null,null,null,null,null,null,null,null,null,null,null,null,null,null,null,null,null,null,null,null,null,null,null,null,null,null,null,null,null,null,null,null,null,null,0]
["2.",null,"Contribuția anuală de participare la schema de calitate către Organismul de control/certificare.",null,null,null,null,null,null,null,null,null,null,null,null,null,null,null,null,null,null,null,null,null,null,null,null,null,null,null,null,null,null,null,null,null,null,null,null,null,null,null,null,0]
["3.",null,"Cheltuieli aferente controalelor necesare pentru verificarea respectării specificațiilor schemei pentru verificarea specificațiilor de îndeplinire a conformității anuale",null,null,null,null,null,null,null,null,null,null,null,null,null,null,null,null,null,null,null,null,null,null,null,null,null,null,null,null,null,null,null,null,null,null,null,null,null,null,null,null,0]
["TOTAL",null,null,null,null,null,null,null,null,null,null,null,null,null,null,null,null,null,null,null,null,null,null,null,{"$f":"Y353+Y358+Y359","v":0},null,null,null,null,null,null,{"$f":"AF353+AF358+AF359","v":0},null,null,null,null,null,{"$f":"AL353+AL358+AL359","v":0},null,null,null,null,null,{"$f":"AX353+AX358+AX359","v":0}]
["*Rata de conversie între euro și moneda națională pentru România, este cea publicată de Banca Central Europeană la adresa: http://www.ecb.int/index.html, la data întocmirii Planului de acțiuni.\n**În cazul grupurilor de fermieri, tabelul se va completa pentru fiecare exploatație în parte.\nOBSERVAȚIE:\nTVA nu este considerată eligibilă, cu excepția cazului în care nu poate fi recuperată în conformitate cu legislația națională privind TVA."]
[]
[]
[null,null,null,null,null,null,null,"MINISTERUL AGRICULTURII ŞI DEZVOLTĂRII RURALE",null,null,null,null,null,null,null,null,null,null,null,null,null,null,null,null,null,null,null,null,null,null,null,null,null,null,null,null,null,null,null,null,null,null,"măsura M4/3A"]
[]
[null,null,null,null,null,null,null,"AGENŢIA PENTRU FINANŢAREA INVESTIŢIILOR RURALE"]
[]
[]
[]
["CHELTUIELI ELIGIBILE PE EXPLOATAȚIE"]
["CURS   VALUTAR             1 EURO =",null,null,null,null,null,null,null,null,null,null,null,null,null,null,null,null,null,null,null,null,null,null,null,null,null,null,null,null,null,null,null,null,null,null,null,null,null,null,null,null,null,null,null,null,null,null,null,null,null,null,null,null,"LEI"]
[]
["Denumire fermier activ"]
["Cod CUI/CIF fermier activ"]
["Codul unic de înregistrare APIA     -",null,null,null,null,null,null,null,null,null,null,null,null,null,null,null,null,null,null,null,null,null,null,null,null,null,null,null,null,null,null,null,null,"Anul atribuirii codului   -"]
["Cod Registru Național al Exploatațiilor ANSVSA -",null,null,null,null,null,null,null,null,null,null,null,null,null,null,null,null,null,null,null,null,null,null,null,null,null,null,null,null,null,null,null,null,null,null,null,null,null,"Anul atribuirii codului  -"]
["Codul CAEN al activității finanțate prin proiect -"]
[]
["Nr. crt.",null,"Tipurile de cheltuieli eligibile",null,null,null,null,null,null,null,null,null,null,null,null,null,null,null,null,null,null,null,null,null,"Valoare estimată\n- euro*/exploatație** -"]
[null,null,null,null,null,null,null,null,null,null,null,null,null,null,null,null,null,null,null,null,null,null,null,null,"Anul 1",null,null,null,null,null,null,"Anul 2",null,null,null,null,null,"Anul 3",null,null,null,null,null,"Total"]
["1.",null,"Costuri aferente aderării la schema de calitate eligibilă",null,null,null,null,null,null,null,null,null,null,null,null,null,null,null,null,null,null,null,null,null,{"$f":"SUM(Y382:AE385)","v":0},null,null,null,null,null,null,{"$f":"SUM(AF382:AK385)","v":0},null,null,null,null,null,{"$f":"SUM(AL382:AQ385)","v":0},null,null,null,null,null,{"$f":"SUM(BD382:BI385)","v":0}]
["1a",null,"Costuri pentru inițierea certificării",null,null,null,null,null,null,null,null,null,null,null,null,null,null,null,null,null,null,null,null,null,null,null,null,null,null,null,null,null,null,null,null,null,null,null,null,null,null,null,null,{"$f":"SUM(Y382:BC382)","v":0}]
["1b",null,"Costuri pentru controlul solicitantului",null,null,null,null,null,null,null,null,null,null,null,null,null,null,null,null,null,null,null,null,null,null,null,null,null,null,null,null,null,null,null,null,null,null,null,null,null,null,null,null,0]
["1c",null,"Cheltuieli aferente testării în urma căreia se certifică\nconformitatea cu specificațiile de calitate",null,null,null,null,null,null,null,null,null,null,null,null,null,null,null,null,null,null,null,null,null,null,null,null,null,null,null,null,null,null,null,null,null,null,null,null,null,null,null,null,0]
["1d",null,"Costuri pentru evaluarea dosarului solicitantului",null,null,null,null,null,null,null,null,null,null,null,null,null,null,null,null,null,null,null,null,null,null,null,null,null,null,null,null,null,null,null,null,null,null,null,null,null,null,null,null,0]
["2.",null,"Contribuția anuală de participare la schema de calitate către Organismul de control/certificare.",null,null,null,null,null,null,null,null,null,null,null,null,null,null,null,null,null,null,null,null,null,null,null,null,null,null,null,null,null,null,null,null,null,null,null,null,null,null,null,null,0]
["3.",null,"Cheltuieli aferente controalelor necesare pentru verificarea respectării specificațiilor schemei pentru verificarea specificațiilor de îndeplinire a conformității anuale",null,null,null,null,null,null,null,null,null,null,null,null,null,null,null,null,null,null,null,null,null,null,null,null,null,null,null,null,null,null,null,null,null,null,null,null,null,null,null,null,0]
["TOTAL",null,null,null,null,null,null,null,null,null,null,null,null,null,null,null,null,null,null,null,null,null,null,null,{"$f":"Y381+Y386+Y387","v":0},null,null,null,null,null,null,{"$f":"AF381+AF386+AF387","v":0},null,null,null,null,null,{"$f":"AL381+AL386+AL387","v":0},null,null,null,null,null,0]
["*Rata de conversie între euro și moneda națională pentru România, este cea publicată de Banca Central Europeană la adresa: http://www.ecb.int/index.html, la data întocmirii Planului de acțiuni.\n**În cazul grupurilor de fermieri, tabelul se va completa pentru fiecare exploatație în parte.\nOBSERVAȚIE:\nTVA nu este considerată eligibilă, cu excepția cazului în care nu poate fi recuperată în conformitate cu legislația națională privind TVA."]
[]
[]
[null,null,null,null,null,null,null,"MINISTERUL AGRICULTURII ŞI DEZVOLTĂRII RURALE",null,null,null,null,null,null,null,null,null,null,null,null,null,null,null,null,null,null,null,null,null,null,null,null,null,null,null,null,null,null,null,null,null,null,"măsura M4/3A"]
[]
[null,null,null,null,null,null,null,"AGENŢIA PENTRU FINANŢAREA INVESTIŢIILOR RURALE"]
[]
[]
[]
["CHELTUIELI ELIGIBILE TOTALE"]
[]
[]
["Nr. crt.",null,"Tipurile de cheltuieli eligibile",null,null,null,null,null,null,null,null,null,null,null,null,null,null,null,null,null,null,null,null,null,"Valoare estimată\n- euro*/exploatație** -"]
[null,null,null,null,null,null,null,null,null,null,null,null,null,null,null,null,null,null,null,null,null,null,null,null,"Anul 1",null,null,null,null,null,null,"Anul 2",null,null,null,null,null,"Anul 3",null,null,null,null,null,"Total"]
["1.",null,"Costuri aferente aderării la schema de calitate eligibilă",null,null,null,null,null,null,null,null,null,null,null,null,null,null,null,null,null,null,null,null,null,{"$f":"SUM(Y404:AE407)","v":0},null,null,null,null,null,null,{"$f":"SUM(AF404:AK407)","v":0},null,null,null,null,null,{"$f":"SUM(AL404:AQ407)","v":0},null,null,null,null,null,{"$f":"SUM(AX404:BC407)","v":0}]
["1a",null,"Costuri pentru inițierea certificării",null,null,null,null,null,null,null,null,null,null,null,null,null,null,null,null,null,null,null,null,null,{"$f":"Y382+Y354+Y326+Y298+Y268","v":0},null,null,null,null,null,null,{"$f":"AF382+AF354+AF326+AF298+AF268","v":0},null,null,null,null,null,{"$f":"AL382+AL354+AL326+AL298+AL268","v":0},null,null,null,null,null,{"$f":"AX382+AX354+AX326+AX298+AX268","v":0}]
["1b",null,"Costuri pentru controlul solicitantului",null,null,null,null,null,null,null,null,null,null,null,null,null,null,null,null,null,null,null,null,null,{"$f":"Y383+Y355+Y327+Y299+Y269","v":0},null,null,null,null,null,null,{"$f":"AF383+AF355+AF327+AF299+AF269","v":0},null,null,null,null,null,{"$f":"AL383+AL355+AL327+AL299+AL269","v":0},null,null,null,null,null,{"$f":"AX383+AX355+AX327+AX299+AX269","v":0}]
["1c",null,"Cheltuieli aferente testării în urma căreia se certifică\nconformitatea cu specificațiile de calitate",null,null,null,null,null,null,null,null,null,null,null,null,null,null,null,null,null,null,null,null,null,{"$f":"Y384+Y356+Y328+Y300+Y270","v":0},null,null,null,null,null,null,{"$f":"AF384+AF356+AF328+AF300+AF270","v":0},null,null,null,null,null,{"$f":"AL384+AL356+AL328+AL300+AL270","v":0},null,null,null,null,null,{"$f":"AX384+AX356+AX328+AX300+AX270","v":0}]
["1d",null,"Costuri pentru evaluarea dosarului solicitantului",null,null,null,null,null,null,null,null,null,null,null,null,null,null,null,null,null,null,null,null,null,{"$f":"Y386+Y357+Y329+Y301+Y271","v":0},null,null,null,null,null,null,{"$f":"AF386+AF357+AF329+AF301+AF271","v":0},null,null,null,null,null,{"$f":"AL386+AL357+AL329+AL301+AL271","v":0},null,null,null,null,null,{"$f":"AX386+AX357+AX329+AX301+AX271","v":0}]
["2.",null,"Contribuția anuală de participare la schema de calitate către Organismul de control/certificare.",null,null,null,null,null,null,null,null,null,null,null,null,null,null,null,null,null,null,null,null,null,{"$f":"Y386+Y358+Y330+Y302+Y272","v":0},null,null,null,null,null,null,{"$f":"AF386+AF358+AF330+AF302+AF272","v":0},null,null,null,null,null,{"$f":"AL386+AL358+AL330+AL302+AL272","v":0},null,null,null,null,null,{"$f":"AX386+AX358+AX330+AX302+AX272","v":0}]
["3.",null,"Cheltuieli aferente controalelor necesare pentru verificarea respectării specificațiilor schemei pentru verificarea specificațiilor de îndeplinire a conformității anuale",null,null,null,null,null,null,null,null,null,null,null,null,null,null,null,null,null,null,null,null,null,{"$f":"Y387+Y359+Y331+Y303+Y273","v":0},null,null,null,null,null,null,{"$f":"AF387+AF359+AF331+AF303+AF273","v":0},null,null,null,null,null,{"$f":"AL387+AL359+AL331+AL303+AL273","v":0},null,null,null,null,null,{"$f":"AX387+AX359+AX331+AX303+AX273","v":0}]
["TOTAL",null,null,null,null,null,null,null,null,null,null,null,null,null,null,null,null,null,null,null,null,null,null,null,{"$f":"Y403+Y408+Y409","v":0},null,null,null,null,null,null,{"$f":"AF403+AF408+AF409","v":0},null,null,null,null,null,{"$f":"AL403+AL408+AL409","v":0},null,null,null,null,null,{"$f":"AR403+AR408+AR409","v":0}]
["*Rata de conversie între euro și moneda națională pentru România, este cea publicată de Banca Central Europeană la adresa: http://www.ecb.int/index.html, la data întocmirii Planului de acțiuni.\n**În cazul grupurilor de fermieri, tabelul se va completa pentru fiecare exploatație în parte.\nOBSERVAȚIE:\nTVA nu este considerată eligibilă, cu excepția cazului în care nu poate fi recuperată în conformitate cu legislația națională privind TVA."]